[Event "MČR v rapid šachu družstev 2019"]
[Site "Teplice, Czech Republic"]
[Date "2019.09.15"]
[Round "1.1"]
[White "Babicka, Michal"]
[Black "Stocek, Jiri"]
[Result "0-1"]
[TimeControl "15 min. + 5s"]
[WhiteElo "2010"]
[BlackElo "2507"]

1. e4 {[%clk 00:15:07]} {[%emt 00:00:03]} c5 {[%clk 00:15:04]} {[%emt
00:00:06]} 2. Nf3 {[%clk 00:15:10]} {[%emt 00:00:02]} d6 {[%clk 00:15:01]}
{[%emt 00:00:08]} 3. d4 {[%clk 00:15:12]} {[%emt 00:00:03]} cxd4 {[%clk
00:15:04]} {[%emt 00:00:02]} 4. Nxd4 {[%clk 00:15:15]} {[%emt 00:00:02]} Nf6
{[%clk 00:15:07]} {[%emt 00:00:02]} 5. Nc3 {[%clk 00:15:19]} {[%emt 00:00:02]}
Nc6 {[%clk 00:15:09]} {[%emt 00:00:02]} 6. f3 {[%clk 00:14:06]} {[%emt
00:01:18]} e5 {[%clk 00:14:24]} {[%emt 00:00:50]} 7. Nb3 {[%clk 00:13:59]}
{[%emt 00:00:12]} Be7 {[%clk 00:14:26]} {[%emt 00:00:03]} 8. Be3 {[%clk
00:13:57]} {[%emt 00:00:07]} O-O {[%clk 00:14:17]} {[%emt 00:00:08]} 9. Qd2
{[%clk 00:13:51]} {[%emt 00:00:11]} Be6 {[%clk 00:14:13]} {[%emt 00:00:14]} 10.
O-O-O {[%clk 00:11:23]} {[%emt 00:02:33]} a5 {[%clk 00:13:45]} {[%emt
00:00:33]} 11. Kb1 {[%clk 00:11:14]} {[%emt 00:00:14]} a4 {[%clk 00:13:45]}
{[%emt 00:00:05]} 12. Nc1 {[%clk 00:11:16]} {[%emt 00:00:03]} a3 {[%clk
00:12:29]} {[%emt 00:01:21]} 13. b3 {[%clk 00:10:39]} {[%emt 00:00:42]} Qa5
{[%clk 00:11:24]} {[%emt 00:01:10]} 14. Nd5 {[%clk 00:08:15]} {[%emt 00:02:28]}
Bxd5 {[%clk 00:11:01]} {[%emt 00:00:29]} 15. exd5 {[%clk 00:06:51]} {[%emt
00:01:29]} Nb4 {[%clk 00:08:24]} {[%emt 00:02:41]} 16. c4 {[%clk 00:06:41]}
{[%emt 00:00:15]} Bd8 {[%clk 00:06:42]} {[%emt 00:01:47]} 17. Nd3 {[%clk
00:06:10]} {[%emt 00:00:37]} Nxd3 {[%clk 00:06:40]} {[%emt 00:00:07]} 18. Qxa5
{[%clk 00:05:57]} {[%emt 00:00:18]} Bxa5 {[%clk 00:06:44]} {[%emt 00:00:02]} 19.
Bxd3 {[%clk 00:05:57]} {[%emt 00:00:04]} Bb4 {[%clk 00:06:28]} {[%emt
00:00:21]} 20. g4 {[%clk 00:05:20]} {[%emt 00:00:42]} Nd7 {[%clk 00:06:27]}
{[%emt 00:00:06]} 21. Bf5 {[%clk 00:04:25]} {[%emt 00:00:59]} Nc5 {[%clk
00:06:22]} {[%emt 00:00:11]} 22. Bd2 {[%clk 00:04:27]} {[%emt 00:00:03]} Bxd2
{[%clk 00:06:15]} {[%emt 00:00:12]} 23. Rxd2 {[%clk 00:04:31]} Rfe8 {[%clk
00:05:50]} {[%emt 00:00:31]} 24. Re1 {[%clk 00:04:21]} {[%emt 00:00:15]} g6
{[%clk 00:05:13]} {[%emt 00:00:42]} 25. Be4 {[%clk 00:04:10]} {[%emt 00:00:16]}
Rac8 {[%clk 00:04:59]} {[%emt 00:00:20]} 26. Rc1 {[%clk 00:02:45]} {[%emt
00:01:30]} Na6 {[%clk 00:05:00]} {[%emt 00:00:04]} 27. h4 {[%clk 00:02:44]}
{[%emt 00:00:05]} Kf8 {[%clk 00:04:52]} {[%emt 00:00:12]} 28. h5 {[%clk
00:02:27]} {[%emt 00:00:22]} Ke7 {[%clk 00:04:53]} {[%emt 00:00:04]} 29. Rh2
{[%clk 00:02:27]} {[%emt 00:00:05]} Kf6 {[%clk 00:04:40]} {[%emt 00:00:18]} 30.
hxg6 {[%clk 00:02:25]} {[%emt 00:00:08]} hxg6 {[%clk 00:04:44]} {[%emt
00:00:02]} 31. Rg1 {[%clk 00:01:36]} {[%emt 00:00:53]} Kg5 {[%clk 00:04:44]}
{[%emt 00:00:05]} 32. Rh7 {[%clk 00:01:40]} {[%emt 00:00:01]} Rc7 {[%clk
00:04:33]} {[%emt 00:00:16]} 33. Rgh1 {[%clk 00:01:39]} {[%emt 00:00:06]} b6
{[%clk 00:04:07]} {[%emt 00:00:31]} 34. Rg7 {[%clk 00:01:20]} {[%emt 00:00:25]}
f5 {[%clk 00:03:18]} {[%emt 00:00:54]} 35. Rxc7 {[%clk 00:01:17]} {[%emt
00:00:08]} Nxc7 {[%clk 00:03:22]} {[%emt 00:00:01]} 36. gxf5 {[%clk 00:01:10]}
{[%emt 00:00:12]} gxf5 {[%clk 00:03:26]} {[%emt 00:00:01]} 37. Bc2 {[%clk
00:00:37]} {[%emt 00:00:38]} Na6 {[%clk 00:03:25]} {[%emt 00:00:05]} 38. Rh7
{[%clk 00:00:38]} {[%emt 00:00:04]} e4 {[%clk 00:03:17]} {[%emt 00:00:14]} 39.
Rf7 {[%clk 00:00:25]} {[%emt 00:00:18]} exf3 {[%clk 00:02:39]} {[%emt
00:00:42]} 40. Rxf5+ {[%clk 00:00:27]} {[%emt 00:00:04]} Kg4 {[%clk 00:02:43]}
{[%emt 00:00:01]} 41. Kc1 {[%clk 00:00:21]} {[%emt 00:00:11]} Re1+ {[%clk
00:02:44]} {[%emt 00:00:03]} 42. Kd2 {[%clk 00:00:25]} {[%emt 00:00:01]} Re2+
{[%clk 00:02:48]} {[%emt 00:00:01]} 43. Kd3 {[%clk 00:00:17]} {[%emt 00:00:13]}
Nb4+ {[%clk 00:02:50]} {[%emt 00:00:02]} 44. Kd4 {[%emt 00:00:04]} 0-1

[Event "MČR v rapid šachu družstev 2019"]
[Site "Teplice, Czech Republic"]
[Date "2019.09.15"]
[Round "1.2"]
[White "Kociscak, Jiri"]
[Black "Vales, Vaclav"]
[Result "1-0"]
[TimeControl "15 min. + 5s"]
[WhiteElo "2410"]
[BlackElo "2110"]

1. d4 {[%clk 00:15:07]} {[%emt 00:00:01]} d5 {[%clk 00:15:08]} {[%emt
00:00:03]} 2. c4 {[%clk 00:15:07]} {[%emt 00:00:04]} c6 {[%clk 00:15:11]}
{[%emt 00:00:02]} 3. Nc3 {[%clk 00:15:08]} {[%emt 00:00:04]} Nf6 {[%clk
00:15:15]} {[%emt 00:00:02]} 4. e3 {[%clk 00:15:11]} {[%emt 00:00:02]} e6
{[%clk 00:15:19]} {[%emt 00:00:01]} 5. Nf3 {[%clk 00:15:13]} {[%emt 00:00:02]}
Nbd7 {[%clk 00:15:23]} {[%emt 00:00:02]} 6. Bd3 {[%clk 00:15:15]} {[%emt
00:00:03]} Bb4 {[%clk 00:15:26]} {[%emt 00:00:02]} 7. O-O {[%clk 00:15:07]}
{[%emt 00:00:13]} O-O {[%clk 00:15:29]} {[%emt 00:00:02]} 8. Qb3 {[%clk
00:14:48]} {[%emt 00:00:24]} Bd6 {[%clk 00:14:56]} {[%emt 00:00:38]} 9. e4
{[%clk 00:14:46]} {[%emt 00:00:06]} dxc4 {[%clk 00:14:59]} {[%emt 00:00:02]} 10.
Bxc4 {[%clk 00:14:47]} {[%emt 00:00:04]} e5 {[%clk 00:14:56]} {[%emt 00:00:08]}
11. Rd1 {[%clk 00:13:53]} {[%emt 00:00:59]} Qe7 {[%clk 00:13:39]} {[%emt
00:01:22]} 12. d5 {[%clk 00:13:25]} {[%emt 00:00:33]} b5 {[%clk 00:12:26]}
{[%emt 00:01:17]} 13. Bf1 {[%clk 00:11:58]} {[%emt 00:01:32]} b4 {[%clk
00:12:21]} {[%emt 00:00:11]} 14. dxc6 {[%clk 00:11:41]} {[%emt 00:00:22]} Nc5
{[%clk 00:12:21]} {[%emt 00:00:05]} 15. Qxb4 {[%clk 00:11:44]} {[%emt
00:00:02]} Ncxe4 {[%clk 00:12:24]} {[%emt 00:00:03]} 16. Rxd6 {[%clk 00:08:59]}
{[%emt 00:02:50]} Nxd6 {[%clk 00:12:19]} {[%emt 00:00:10]} 17. Be3 {[%clk
00:09:02]} {[%emt 00:00:02]} a5 {[%clk 00:11:17]} {[%emt 00:01:07]} 18. Qa3
{[%clk 00:08:36]} {[%emt 00:00:31]} Rd8 {[%clk 00:09:13]} {[%emt 00:02:08]} 19.
Bb6 {[%clk 00:07:57]} {[%emt 00:00:44]} e4 {[%clk 00:07:15]} {[%emt 00:02:04]}
20. Bxd8 {[%clk 00:07:57]} {[%emt 00:00:04]} Qxd8 {[%clk 00:07:19]} {[%emt
00:00:01]} 21. Rd1 {[%clk 00:07:59]} {[%emt 00:00:03]} exf3 {[%clk 00:07:03]}
{[%emt 00:00:21]} 22. Qxd6 {[%clk 00:08:02]} {[%emt 00:00:02]} Qe8 {[%clk
00:06:41]} {[%emt 00:00:27]} 23. gxf3 {[%clk 00:07:45]} {[%emt 00:00:22]} h6
{[%clk 00:05:46]} {[%emt 00:01:00]} 24. Nb5 {[%clk 00:07:07]} {[%emt 00:00:42]}
1-0

[Event "MČR v rapid šachu družstev 2019"]
[Site "Teplice, Czech Republic"]
[Date "2019.09.15"]
[Round "1.3"]
[White "Janda, Zdenek"]
[Black "Polak, Tomas"]
[Result "0-1"]
[TimeControl "15 min. + 5s"]
[WhiteElo "2008"]
[BlackElo "2515"]

1. d4 {[%clk 00:15:09]} Nf6 {[%clk 00:15:08]} {[%emt 00:00:03]} 2. c4 {[%clk
00:15:10]} {[%emt 00:00:04]} e6 {[%clk 00:15:11]} {[%emt 00:00:01]} 3. Nc3
{[%clk 00:15:09]} {[%emt 00:00:07]} Bb4 {[%clk 00:15:13]} {[%emt 00:00:03]} 4.
e3 {[%clk 00:15:12]} {[%emt 00:00:01]} c5 {[%clk 00:15:17]} {[%emt 00:00:02]} 5.
Nge2 {[%clk 00:15:15]} {[%emt 00:00:02]} cxd4 {[%clk 00:15:19]} {[%emt
00:00:03]} 6. exd4 {[%clk 00:15:16]} {[%emt 00:00:04]} d5 {[%clk 00:15:22]}
{[%emt 00:00:02]} 7. a3 {[%clk 00:15:17]} {[%emt 00:00:04]} Be7 {[%clk
00:15:22]} {[%emt 00:00:05]} 8. Ng3 {[%clk 00:14:53]} {[%emt 00:00:29]} O-O
{[%clk 00:14:59]} {[%emt 00:00:28]} 9. Be3 {[%clk 00:14:15]} {[%emt 00:00:43]}
b6 {[%clk 00:14:27]} {[%emt 00:00:38]} 10. Be2 {[%clk 00:13:53]} {[%emt
00:00:27]} Ba6 {[%clk 00:13:29]} {[%emt 00:01:03]} 11. cxd5 {[%clk 00:13:21]}
{[%emt 00:00:37]} Bxe2 {[%clk 00:13:21]} {[%emt 00:00:13]} 12. Ngxe2 {[%clk
00:12:57]} {[%emt 00:00:29]} Nxd5 {[%clk 00:13:12]} {[%emt 00:00:14]} 13. Nxd5
{[%clk 00:12:41]} {[%emt 00:00:21]} Qxd5 {[%clk 00:13:13]} {[%emt 00:00:05]} 14.
O-O {[%clk 00:12:39]} {[%emt 00:00:07]} Rd8 {[%clk 00:13:05]} {[%emt 00:00:13]}
15. Nc3 {[%clk 00:12:15]} {[%emt 00:00:29]} Qf5 {[%clk 00:12:55]} {[%emt
00:00:15]} 16. Qa4 {[%clk 00:11:24]} {[%emt 00:00:56]} Nd7 {[%clk 00:12:46]}
{[%emt 00:00:14]} 17. Nb5 {[%clk 00:09:54]} {[%emt 00:01:35]} a6 {[%clk
00:11:47]} {[%emt 00:01:03]} 18. Nc3 {[%clk 00:09:31]} {[%emt 00:00:28]} b5
{[%clk 00:10:56]} {[%emt 00:00:57]} 19. Qb3 {[%clk 00:09:21]} {[%emt 00:00:15]}
Nf6 {[%clk 00:10:26]} {[%emt 00:00:35]} 20. h3 {[%clk 00:09:08]} {[%emt
00:00:18]} Rac8 {[%clk 00:10:12]} {[%emt 00:00:19]} 21. Rac1 {[%clk 00:09:04]}
{[%emt 00:00:09]} Bd6 {[%clk 00:09:21]} {[%emt 00:00:57]} 22. Rfd1 {[%clk
00:08:21]} {[%emt 00:00:48]} h6 {[%clk 00:09:14]} {[%emt 00:00:12]} 23. Qc2
{[%clk 00:07:19]} {[%emt 00:01:07]} Qxc2 {[%clk 00:08:50]} {[%emt 00:00:29]} 24.
Rxc2 {[%clk 00:07:22]} {[%emt 00:00:01]} Rc4 {[%clk 00:08:45]} {[%emt
00:00:11]} 25. Re2 {[%clk 00:06:44]} {[%emt 00:00:42]} Bxa3 {[%clk 00:08:15]}
{[%emt 00:00:35]} 26. Nxb5 {[%clk 00:06:24]} {[%emt 00:00:26]} Bb4 {[%clk
00:08:16]} {[%emt 00:00:04]} 27. Na3 {[%clk 00:06:15]} {[%emt 00:00:14]} Bxa3
{[%clk 00:08:15]} {[%emt 00:00:06]} 28. bxa3 {[%clk 00:06:18]} {[%emt
00:00:01]} Rb8 {[%clk 00:07:29]} {[%emt 00:00:51]} 29. Kf1 {[%clk 00:05:26]}
{[%emt 00:00:57]} Nd5 {[%clk 00:07:29]} {[%emt 00:00:05]} 30. Ra1 {[%clk
00:05:16]} {[%emt 00:00:16]} Rb3 {[%clk 00:07:24]} {[%emt 00:00:11]} 31. Ke1
{[%clk 00:04:15]} {[%emt 00:01:06]} Ra4 {[%clk 00:07:17]} {[%emt 00:00:12]} 32.
Rea2 {[%clk 00:03:52]} {[%emt 00:00:27]} Nxe3 {[%clk 00:06:57]} {[%emt
00:00:26]} 33. fxe3 {[%clk 00:03:50]} {[%emt 00:00:07]} Rxe3+ {[%clk 00:07:00]}
{[%emt 00:00:01]} 34. Kf2 {[%clk 00:03:31]} {[%emt 00:00:24]} Rd3 {[%emt
00:00:16]} 0-1

[Event "MČR v rapid šachu družstev 2019"]
[Site "Teplice, Czech Republic"]
[Date "2019.09.15"]
[Round "1.4"]
[White "Vymazal, Bronislav"]
[Black "Havranek, Tomas"]
[Result "1-0"]
[TimeControl "15 min. + 5s"]
[WhiteElo "2347"]
[BlackElo "2023"]

1. e4 {[%clk 00:15:08]} {[%emt 00:00:01]} c5 {[%clk 00:15:09]} {[%emt
00:00:01]} 2. Nf3 {[%clk 00:15:12]} {[%emt 00:00:02]} Nc6 {[%clk 00:15:13]}
{[%emt 00:00:01]} 3. Bb5 {[%clk 00:15:09]} {[%emt 00:00:07]} g6 {[%clk
00:15:08]} {[%emt 00:00:10]} 4. O-O {[%clk 00:15:10]} {[%emt 00:00:03]} Bg7
{[%clk 00:15:11]} {[%emt 00:00:02]} 5. c3 {[%clk 00:15:03]} {[%emt 00:00:13]}
Nf6 {[%clk 00:14:50]} {[%emt 00:00:27]} 6. Qa4 {[%clk 00:14:52]} {[%emt
00:00:15]} O-O {[%clk 00:12:17]} {[%emt 00:02:38]} 7. d4 {[%clk 00:14:55]}
{[%emt 00:00:02]} cxd4 {[%clk 00:12:07]} {[%emt 00:00:16]} 8. cxd4 {[%clk
00:14:58]} {[%emt 00:00:02]} Qc7 {[%clk 00:09:25]} {[%emt 00:02:47]} 9. Nc3
{[%clk 00:14:39]} {[%emt 00:00:25]} e6 {[%clk 00:08:46]} {[%emt 00:00:45]} 10.
Bg5 {[%clk 00:14:20]} {[%emt 00:00:24]} d6 {[%clk 00:08:30]} {[%emt 00:00:21]}
11. Rac1 {[%clk 00:14:11]} {[%emt 00:00:14]} Qb6 {[%clk 00:08:07]} {[%emt
00:00:27]} 12. d5 {[%clk 00:11:53]} {[%emt 00:02:24]} exd5 {[%clk 00:06:46]}
{[%emt 00:01:26]} 13. Bxf6 {[%clk 00:11:53]} {[%emt 00:00:05]} Bxf6 {[%clk
00:06:35]} {[%emt 00:00:17]} 14. Nxd5 {[%clk 00:11:56]} {[%emt 00:00:02]} Qd8
{[%clk 00:06:38]} {[%emt 00:00:02]} 15. Bxc6 {[%clk 00:08:49]} {[%emt
00:03:12]} bxc6 {[%clk 00:06:41]} {[%emt 00:00:02]} 16. Qxc6 {[%clk 00:08:53]}
{[%emt 00:00:01]} Bg4 {[%clk 00:06:37]} {[%emt 00:00:09]} 17. e5 {[%clk
00:05:29]} {[%emt 00:03:28]} Bg7 {[%clk 00:04:16]} {[%emt 00:02:26]} 18. exd6
{[%clk 00:05:32]} {[%emt 00:00:02]} Bxf3 {[%clk 00:03:55]} {[%emt 00:00:26]} 19.
Ne7+ {[%clk 00:05:06]} {[%emt 00:00:30]} Kh8 {[%clk 00:03:48]} {[%emt
00:00:12]} 20. gxf3 {[%clk 00:04:52]} {[%emt 00:00:19]} Rb8 {[%clk 00:03:39]}
{[%emt 00:00:14]} 21. Qc7 {[%clk 00:03:12]} {[%emt 00:01:45]} Bxb2 {[%clk
00:02:54]} {[%emt 00:00:50]} 22. Rb1 {[%clk 00:02:21]} {[%emt 00:00:56]} Ba3
{[%clk 00:02:18]} {[%emt 00:00:42]} 23. Rxb8 {[%clk 00:01:18]} {[%emt
00:01:07]} Qxb8 {[%clk 00:02:21]} {[%emt 00:00:01]} 24. Qc3+ {[%clk 00:01:20]}
{[%emt 00:00:04]} 1-0

[Event "MČR v rapid šachu družstev 2019"]
[Site "Teplice, Czech Republic"]
[Date "2019.09.15"]
[Round "1.5"]
[White "Vykouk, Jan"]
[Black "Novotny, Michal"]
[Result "1-0"]
[TimeControl "15 min. + 5s"]
[WhiteElo "2428"]
[BlackElo "2311"]

1. Nf3 {[%clk 00:15:07]} {[%emt 00:00:03]} e6 {[%clk 00:15:06]} {[%emt
00:00:04]} 2. g3 {[%clk 00:15:02]} {[%emt 00:00:11]} d5 {[%clk 00:15:09]} 3. b3
{[%clk 00:14:52]} {[%emt 00:00:17]} Nf6 {[%clk 00:15:12]} {[%emt 00:00:02]} 4.
Bb2 {[%clk 00:14:55]} {[%emt 00:00:02]} Be7 {[%clk 00:15:15]} {[%emt 00:00:01]}
5. Bg2 {[%clk 00:14:58]} {[%emt 00:00:02]} O-O {[%clk 00:15:18]} {[%emt
00:00:02]} 6. O-O {[%clk 00:14:53]} {[%emt 00:00:10]} c5 {[%clk 00:15:21]}
{[%emt 00:00:02]} 7. c4 {[%clk 00:14:36]} {[%emt 00:00:22]} d4 {[%clk
00:15:24]} {[%emt 00:00:02]} 8. e3 {[%clk 00:14:38]} {[%emt 00:00:03]} Nc6
{[%clk 00:15:27]} {[%emt 00:00:02]} 9. exd4 {[%clk 00:14:41]} {[%emt 00:00:03]}
cxd4 {[%clk 00:15:30]} {[%emt 00:00:01]} 10. Re1 {[%clk 00:14:42]} {[%emt
00:00:03]} Ne8 {[%clk 00:15:33]} {[%emt 00:00:02]} 11. d3 {[%clk 00:14:34]}
{[%emt 00:00:14]} f6 {[%clk 00:15:35]} {[%emt 00:00:03]} 12. Na3 {[%clk
00:14:01]} {[%emt 00:00:38]} e5 {[%clk 00:15:37]} {[%emt 00:00:02]} 13. Nc2
{[%clk 00:14:04]} {[%emt 00:00:03]} a5 {[%clk 00:15:41]} {[%emt 00:00:01]} 14.
Na3 {[%clk 00:13:22]} {[%emt 00:00:47]} Nc7 {[%clk 00:15:44]} {[%emt 00:00:02]}
15. Nd2 {[%clk 00:13:07]} {[%emt 00:00:20]} Bb4 {[%clk 00:15:21]} {[%emt
00:00:28]} 16. Nc2 {[%clk 00:13:03]} {[%emt 00:00:09]} Bf5 {[%clk 00:14:24]}
{[%emt 00:01:02]} 17. Nxb4 {[%clk 00:12:59]} {[%emt 00:00:09]} Nxb4 {[%clk
00:14:18]} {[%emt 00:00:11]} 18. Ne4 {[%clk 00:13:02]} {[%emt 00:00:02]} Bg6
{[%clk 00:13:45]} {[%emt 00:00:37]} 19. a3 {[%clk 00:13:05]} {[%emt 00:00:02]}
Nc6 {[%clk 00:13:44]} {[%emt 00:00:06]} 20. Nc5 {[%clk 00:13:00]} {[%emt
00:00:10]} b6 {[%clk 00:11:43]} {[%emt 00:02:06]} 21. Na4 {[%clk 00:12:39]}
{[%emt 00:00:25]} Qd6 {[%clk 00:11:20]} {[%emt 00:00:29]} 22. Nxb6 {[%clk
00:12:42]} {[%emt 00:00:02]} Rab8 {[%clk 00:11:15]} {[%emt 00:00:09]} 23. Nd5
{[%clk 00:12:30]} {[%emt 00:00:17]} Na6 {[%clk 00:11:07]} {[%emt 00:00:14]} 24.
b4 {[%clk 00:10:11]} {[%emt 00:02:23]} axb4 {[%clk 00:11:07]} {[%emt 00:00:05]}
25. axb4 {[%clk 00:10:15]} {[%emt 00:00:01]} Ncxb4 {[%clk 00:10:41]} {[%emt
00:00:31]} 26. Ba3 {[%clk 00:10:07]} {[%emt 00:00:13]} Rf7 {[%clk 00:09:47]}
{[%emt 00:00:58]} 27. Nxb4 {[%clk 00:08:58]} {[%emt 00:01:15]} Nxb4 {[%clk
00:09:32]} {[%emt 00:00:20]} 28. Bd5 {[%clk 00:08:12]} {[%emt 00:00:51]} Qd8
{[%clk 00:09:07]} {[%emt 00:00:30]} 29. Bxb4 {[%clk 00:08:08]} {[%emt
00:00:09]} Rxb4 {[%clk 00:09:11]} {[%emt 00:00:02]} 30. Ra8 {[%clk 00:07:23]}
{[%emt 00:00:50]} Rb8 {[%clk 00:09:14]} {[%emt 00:00:02]} 31. Rxb8 {[%clk
00:07:25]} {[%emt 00:00:02]} Qxb8 {[%clk 00:09:18]} {[%emt 00:00:01]} 32. Qb1
{[%clk 00:06:53]} {[%emt 00:00:37]} Qc7 {[%clk 00:08:20]} {[%emt 00:01:03]} 33.
Qa2 {[%clk 00:06:39]} {[%emt 00:00:18]} h5 {[%clk 00:08:13]} {[%emt 00:00:12]}
34. Bxf7+ {[%clk 00:05:11]} {[%emt 00:01:32]} Qxf7 {[%clk 00:07:57]} {[%emt
00:00:21]} 35. Qa8+ {[%clk 00:05:06]} {[%emt 00:00:10]} Kh7 {[%clk 00:08:01]}
{[%emt 00:00:01]} 36. Qf3 {[%clk 00:04:48]} {[%emt 00:00:24]} Qa7 {[%clk
00:07:49]} {[%emt 00:00:17]} 37. Qe2 {[%clk 00:03:20]} {[%emt 00:01:33]} Qa3
{[%clk 00:07:45]} {[%emt 00:00:10]} 38. Rd1 {[%clk 00:03:22]} {[%emt 00:00:02]}
Qc5 {[%clk 00:05:40]} {[%emt 00:02:10]} 39. f3 {[%clk 00:02:52]} {[%emt
00:00:35]} f5 {[%clk 00:04:47]} {[%emt 00:00:58]} 40. Kg2 {[%clk 00:02:34]}
{[%emt 00:00:23]} h4 {[%clk 00:03:24]} {[%emt 00:01:29]} 41. Re1 {[%clk
00:02:31]} {[%emt 00:00:07]} e4 {[%clk 00:03:27]} {[%emt 00:00:01]} 42. fxe4
{[%clk 00:02:27]} {[%emt 00:00:10]} fxe4 {[%clk 00:03:20]} {[%emt 00:00:12]} 43.
dxe4 {[%clk 00:02:29]} {[%emt 00:00:03]} Bh5 {[%clk 00:02:49]} {[%emt
00:00:36]} 44. Qf1 {[%clk 00:02:04]} {[%emt 00:00:30]} Qa3 {[%clk 00:02:07]}
{[%emt 00:00:48]} 45. Qf5+ {[%clk 00:01:49]} {[%emt 00:00:19]} Bg6 {[%clk
00:02:11]} {[%emt 00:00:02]} 46. Qf4 {[%clk 00:01:29]} {[%emt 00:00:25]} Qa2+
{[%clk 00:01:38]} {[%emt 00:00:38]} 47. Kg1 {[%clk 00:01:28]} {[%emt 00:00:05]}
hxg3 {[%clk 00:01:20]} {[%emt 00:00:23]} 48. hxg3 {[%clk 00:01:26]} {[%emt
00:00:07]} Qxc4 {[%clk 00:01:10]} {[%emt 00:00:16]} 49. Qh4+ {[%clk 00:01:24]}
{[%emt 00:00:06]} Kg8 {[%clk 00:01:14]} 50. Rb1 {[%clk 00:01:04]} {[%emt
00:00:26]} Qc7 {[%clk 00:00:54]} {[%emt 00:00:25]} 51. Qf4 {[%clk 00:00:33]}
{[%emt 00:00:36]} Qxf4 {[%clk 00:00:58]} 52. gxf4 {[%clk 00:00:37]} {[%emt
00:00:01]} Bxe4 {[%clk 00:01:01]} {[%emt 00:00:01]} 53. Rb4 {[%clk 00:00:42]}
{[%emt 00:00:01]} Kh7 {[%clk 00:00:52]} {[%emt 00:00:14]} 54. Rxd4 {[%clk
00:00:45]} {[%emt 00:00:02]} Bb1 {[%clk 00:00:54]} {[%emt 00:00:03]} 55. Kf2
{[%clk 00:00:45]} {[%emt 00:00:05]} Kg6 {[%clk 00:00:57]} {[%emt 00:00:01]} 56.
Kg3 {[%clk 00:00:48]} {[%emt 00:00:03]} Bf5 {[%clk 00:01:00]} {[%emt 00:00:01]}
57. Rd5 {[%clk 00:00:44]} {[%emt 00:00:10]} Bb1 {[%clk 00:01:04]} {[%emt
00:00:02]} 58. Rg5+ {[%clk 00:00:46]} {[%emt 00:00:03]} Kf6 {[%clk 00:00:56]}
{[%emt 00:00:13]} 59. Ra5 {[%clk 00:00:41]} {[%emt 00:00:10]} Bd3 {[%clk
00:00:56]} {[%emt 00:00:05]} 60. Kf2 {[%clk 00:00:36]} {[%emt 00:00:10]} Bb1
{[%clk 00:00:50]} {[%emt 00:00:12]} 61. Ke3 {[%clk 00:00:38]} {[%emt 00:00:03]}
Bc2 {[%clk 00:00:53]} {[%emt 00:00:02]} 62. Kf3 {[%clk 00:00:36]} {[%emt
00:00:07]} Bd3 {[%clk 00:00:56]} {[%emt 00:00:02]} 63. Rc5 {[%clk 00:00:37]}
{[%emt 00:00:04]} Bf5 {[%clk 00:00:55]} {[%emt 00:00:06]} 64. Rc6+ {[%clk
00:00:39]} {[%emt 00:00:03]} Kf7 {[%clk 00:00:58]} {[%emt 00:00:02]} 65. Kg3
{[%clk 00:00:41]} {[%emt 00:00:03]} Be4 {[%clk 00:00:40]} {[%emt 00:00:23]} 66.
Rb6 {[%clk 00:00:44]} {[%emt 00:00:03]} Bd3 {[%clk 00:00:43]} {[%emt 00:00:02]}
67. Kh4 {[%clk 00:00:47]} {[%emt 00:00:02]} Be4 {[%clk 00:00:45]} {[%emt
00:00:03]} 68. Kg5 {[%clk 00:00:51]} {[%emt 00:00:01]} Bd3 {[%clk 00:00:49]}
{[%emt 00:00:01]} 69. Rb7+ {[%clk 00:00:37]} {[%emt 00:00:19]} Kg8 {[%clk
00:00:47]} {[%emt 00:00:07]} 70. f5 {[%clk 00:00:27]} {[%emt 00:00:15]} Be4
{[%clk 00:00:10]} {[%emt 00:00:42]} 71. Rc7 {[%clk 00:00:25]} {[%emt 00:00:07]}
Kf8 {[%emt 00:00:11]} 1-0